[Event "Early-Titled-Tuesday-Blitz-May-14-2024"]
[Site "Chess.com"]
[Date "2024.05.14"]
[Round "1"]
[White "GameOverBro"]
[Black "emiliocordova"]
[Result "1/2-1/2"]
[WhiteElo "2529"]
[BlackElo "2905"]
[TimeControl "180+1"]
[EndTime "8:08:08 PDT"]
[Termination "Game drawn by repetition"]

1. e4 {[%clk 0:02:57.1]} 1... c5 {[%clk 0:02:55.6]} 2. Ne2 {[%clk 0:02:56.9]}
2... d6 {[%clk 0:02:55.5]} 3. g3 {[%clk 0:02:56.7]} 3... Nf6 {[%clk 0:02:55]} 4.
Bg2 {[%clk 0:02:57]} 4... g6 {[%clk 0:02:55.9]} 5. O-O {[%clk 0:02:56.5]} 5...
Bg7 {[%clk 0:02:56.5]} 6. c3 {[%clk 0:02:57]} 6... O-O {[%clk 0:02:48.3]} 7. d4
{[%clk 0:02:57]} 7... cxd4 {[%clk 0:02:47.8]} 8. cxd4 {[%clk 0:02:57.9]} 8...
Nc6 {[%clk 0:02:48.3]} 9. Nbc3 {[%clk 0:02:57.4]} 9... Bd7 {[%clk 0:02:48.5]}
10. h3 {[%clk 0:02:57.1]} 10... Rc8 {[%clk 0:02:48.3]} 11. Be3 {[%clk
0:02:57.2]} 11... a6 {[%clk 0:02:48.4]} 12. Qd2 {[%clk 0:02:57.1]} 12... b5
{[%clk 0:02:48.6]} 13. Rfc1 {[%clk 0:02:53.1]} 13... e5 {[%clk 0:02:48.2]} 14.
d5 {[%clk 0:02:47.7]} 14... Na5 {[%clk 0:02:47]} 15. b3 {[%clk 0:02:45.3]} 15...
Nb7 {[%clk 0:02:46.8]} 16. b4 {[%clk 0:02:31.2]} 16... Rc4 {[%clk 0:02:45.5]}
17. a3 {[%clk 0:02:27.3]} 17... a5 {[%clk 0:02:39.1]} 18. Rab1 {[%clk
0:02:21.9]} 18... axb4 {[%clk 0:02:38.4]} 19. axb4 {[%clk 0:02:20.8]} 19... Qc7
{[%clk 0:02:29]} 20. f3 {[%clk 0:02:16.6]} 20... Rc8 {[%clk 0:02:28.3]} 21. Nd1
{[%clk 0:01:50.8]} 21... Qd8 {[%clk 0:02:23.1]} 22. Nb2 {[%clk 0:01:47.5]} 22...
Rxc1+ {[%clk 0:02:21.5]} 23. Rxc1 {[%clk 0:01:48.4]} 23... Ra8 {[%clk
0:02:19.7]} 24. Nd3 {[%clk 0:01:41.3]} 24... Be8 {[%clk 0:02:18.5]} 25. Qb2
{[%clk 0:01:40.7]} 25... Nd7 {[%clk 0:02:18.1]} 26. Ra1 {[%clk 0:01:36]} 26...
Rb8 {[%clk 0:02:16]} 27. Ra6 {[%clk 0:01:34.4]} 27... Ra8 {[%clk 0:02:13.9]} 28.
Qa2 {[%clk 0:01:33.6]} 28... Rc8 {[%clk 0:02:07.2]} 29. h4 {[%clk 0:01:29]}
29... f5 {[%clk 0:02:00.1]} 30. Bh3 {[%clk 0:01:27.5]} 30... f4 {[%clk
0:01:49.3]} 31. Bf2 {[%clk 0:01:24.2]} 31... fxg3 {[%clk 0:01:47.6]} 32. Bxg3
{[%clk 0:01:16.8]} 32... Bf6 {[%clk 0:01:39.9]} 33. Ra7 {[%clk 0:01:10.7]} 33...
Rb8 {[%clk 0:01:26.8]} 34. h5 {[%clk 0:01:10.9]} 34... Kg7 {[%clk 0:01:26.6]}
35. hxg6 {[%clk 0:01:06.4]} 35... hxg6 {[%clk 0:01:27.5]} 36. Kg2 {[%clk
0:01:06.4]} 36... Qc7 {[%clk 0:01:20.9]} 37. Bf2 {[%clk 0:01:06.3]} 37... Nb6
{[%clk 0:01:17]} 38. Qa6 {[%clk 0:01:05.6]} 38... Nc4 {[%clk 0:01:16]} 39. Nc5
{[%clk 0:01:00.3]} 39... dxc5 {[%clk 0:01:04.2]} 40. bxc5 {[%clk 0:01:01.2]}
40... Bf7 {[%clk 0:00:29]} 41. c6 {[%clk 0:01:00.9]} 41... Ncd6 {[%clk
0:00:29.3]} 42. Nc3 {[%clk 0:00:30.6]} 42... Qe7 {[%clk 0:00:23.8]} 43. Nxb5
{[%clk 0:00:27.8]} 43... Nxb5 {[%clk 0:00:21.4]} 44. Qxb5 {[%clk 0:00:28.7]}
44... Bh4 {[%clk 0:00:18.3]} 45. Rxb7 {[%clk 0:00:26.3]} 45... Qg5+ {[%clk
0:00:18]} 46. Kf1 {[%clk 0:00:24.7]} 46... Rh8 {[%clk 0:00:17.6]} 47. Be6 {[%clk
0:00:22.5]} 47... Qc1+ {[%clk 0:00:15.1]} 48. Kg2 {[%clk 0:00:22.4]} 48... Qg5+
{[%clk 0:00:15.1]} 49. Kf1 {[%clk 0:00:22]} 49... Qc1+ {[%clk 0:00:15]} 50. Kg2
{[%clk 0:00:14.6]} 50... Bxf2 {[%clk 0:00:15.3]} 51. Rxf7+ {[%clk 0:00:12.8]}
51... Kh6 {[%clk 0:00:15.9]} 52. Kxf2 {[%clk 0:00:12.1]} 52... Kg5 {[%clk
0:00:16.4]} 53. Qf1 {[%clk 0:00:04.1]} 53... Rh2+ {[%clk 0:00:16.1]} 54. Kg3
{[%clk 0:00:03.3]} 54... Qxf1 {[%clk 0:00:14.8]} 55. Kxh2 {[%clk 0:00:04.2]}
55... Qf2+ {[%clk 0:00:15.2]} 56. Kh3 {[%clk 0:00:03.9]} 56... Qf1+ {[%clk
0:00:15.7]} 57. Kh2 {[%clk 0:00:04.3]} 57... Qf2+ {[%clk 0:00:16.1]} 58. Kh3
{[%clk 0:00:05.2]} 58... Qf1+ {[%clk 0:00:15.7]} 59. Kh2 {[%clk 0:00:06.1]}
1/2-1/2

[Event "Early-Titled-Tuesday-Blitz-May-14-2024"]
[Site "Chess.com"]
[Date "2024.05.14"]
[Round "1"]
[White "Russian_berezka"]
[Black "klercaku"]
[Result "1-0"]
[WhiteElo "2602"]
[BlackElo "2249"]
[TimeControl "180+1"]
[EndTime "8:08:16 PDT"]
[Termination "Russian_berezka won by checkmate"]

1. d4 {[%clk 0:01:57]} 1... d5 {[%clk 0:02:58.9]} 2. Bf4 {[%clk 0:01:54.9]} 2...
e6 {[%clk 0:02:59.2]} 3. e3 {[%clk 0:01:53.4]} 3... Nf6 {[%clk 0:02:59.6]} 4.
Nd2 {[%clk 0:01:52.9]} 4... c5 {[%clk 0:03:00]} 5. c3 {[%clk 0:01:53.4]} 5...
Nc6 {[%clk 0:02:58.5]} 6. Bd3 {[%clk 0:01:53.5]} 6... cxd4 {[%clk 0:02:56.8]} 7.
cxd4 {[%clk 0:01:53.1]} 7... Be7 {[%clk 0:02:56.3]} 8. h3 {[%clk 0:01:52.8]}
8... O-O {[%clk 0:02:56]} 9. Ngf3 {[%clk 0:01:52.9]} 9... Qb6 {[%clk 0:02:41.8]}
10. Qb3 {[%clk 0:01:49.9]} 10... Qxb3 {[%clk 0:02:27.7]} 11. Nxb3 {[%clk
0:01:50.8]} 11... Nb4 {[%clk 0:02:27.8]} 12. Bb1 {[%clk 0:01:49.7]} 12... a5
{[%clk 0:02:27.5]} 13. a3 {[%clk 0:01:47.5]} 13... Nc6 {[%clk 0:02:27.2]} 14.
Bd3 {[%clk 0:01:46]} 14... a4 {[%clk 0:02:16.4]} 15. Nbd2 {[%clk 0:01:45.8]}
15... Bd7 {[%clk 0:02:10.4]} 16. Ke2 {[%clk 0:01:45.6]} 16... Rfb8 {[%clk
0:02:00.4]} 17. Bxb8 {[%clk 0:01:41.6]} 17... Rxb8 {[%clk 0:01:57.5]} 18. Rhc1
{[%clk 0:01:41.8]} 18... b5 {[%clk 0:01:55.6]} 19. Ne5 {[%clk 0:01:40]} 19...
Nxe5 {[%clk 0:01:50.5]} 20. dxe5 {[%clk 0:01:40.9]} 20... Ne8 {[%clk 0:01:50.6]}
21. Nf3 {[%clk 0:01:38]} 21... b4 {[%clk 0:01:47.6]} 22. Nd4 {[%clk 0:01:35.3]}
22... f6 {[%clk 0:01:20.6]} 23. f4 {[%clk 0:01:25]} 23... Kf7 {[%clk 0:01:16.1]}
24. Nc6 {[%clk 0:01:20.7]} 24... Bxc6 {[%clk 0:01:06.5]} 25. Rxc6 {[%clk
0:01:21.6]} 25... bxa3 {[%clk 0:01:05.6]} 26. bxa3 {[%clk 0:01:22.4]} 26... Rb2+
{[%clk 0:01:05.1]} 27. Rc2 {[%clk 0:01:21.4]} 27... Rb3 {[%clk 0:01:05.3]} 28.
Rca2 {[%clk 0:01:15.2]} 28... Nc7 {[%clk 0:00:57.2]} 29. Bc2 {[%clk 0:01:13.7]}
29... Rc3 {[%clk 0:00:51.1]} 30. Bxa4 {[%clk 0:01:13.2]} 30... Bc5 {[%clk
0:00:48.4]} 31. Rc2 {[%clk 0:01:12.3]} 31... Rxe3+ {[%clk 0:00:40.2]} 32. Kd2
{[%clk 0:01:12.4]} 32... Bb6 {[%clk 0:00:20.1]} 33. Rxc7+ {[%clk 0:01:11.6]}
33... Kg6 {[%clk 0:00:20.3]} 34. Rc6 {[%clk 0:01:11.1]} 34... Bd4 {[%clk
0:00:18.2]} 35. Bc2+ {[%clk 0:01:03.6]} 35... Kh5 {[%clk 0:00:16]} 36. Rxe6
{[%clk 0:00:54.5]} 36... Rg3 {[%clk 0:00:11]} 37. Re1 {[%clk 0:00:43.8]} 37...
Bc3+ {[%clk 0:00:09.6]} 38. Kd1 {[%clk 0:00:41.7]} 38... Rxg2 {[%clk 0:00:04.5]}
39. exf6 {[%clk 0:00:32.9]} 39... gxf6 {[%clk 0:00:04.8]} 40. Bxh7 {[%clk
0:00:28.1]} 40... Rd2+ {[%clk 0:00:02.7]} 41. Kc1 {[%clk 0:00:27.6]} 41... Ra2
{[%clk 0:00:02.9]} 42. R1e2 {[%clk 0:00:24.8]} 42... Rxa3 {[%clk 0:00:01.9]} 43.
Kc2 {[%clk 0:00:24]} 43... Kh6 {[%clk 0:00:02.3]} 44. Bg8 {[%clk 0:00:23.3]}
44... Ba1 {[%clk 0:00:02.8]} 45. Rd6 {[%clk 0:00:22.1]} 45... Rc3+ {[%clk
0:00:03.1]} 46. Kb1 {[%clk 0:00:20.6]} 46... Ra3 {[%clk 0:00:03.7]} 47. Rxd5
{[%clk 0:00:16.6]} 47... Ra8 {[%clk 0:00:04]} 48. Be6 {[%clk 0:00:14.8]} 48...
Bc3 {[%clk 0:00:04.4]} 49. Bf5 {[%clk 0:00:15.2]} 49... Ra1+ {[%clk 0:00:03.9]}
50. Kc2 {[%clk 0:00:15.1]} 50... Ra2+ {[%clk 0:00:03.7]} 51. Kd3 {[%clk
0:00:15.5]} 51... Ra3 {[%clk 0:00:03.9]} 52. Kc4 {[%clk 0:00:15.4]} 52... Ba1
{[%clk 0:00:03.2]} 53. Re7 {[%clk 0:00:14.5]} 53... Rc3+ {[%clk 0:00:03.3]} 54.
Kb4 {[%clk 0:00:13.2]} 54... Rf3 {[%clk 0:00:02.4]} 55. Rh7# {[%clk 0:00:12.4]}
1-0

[Event "Early-Titled-Tuesday-Blitz-May-14-2024"]
[Site "Chess.com"]
[Date "2024.05.14"]
[Round "1"]
[White "BilodeauA"]
[Black "lagunanivaria"]
[Result "1-0"]
[WhiteElo "2892"]
[BlackElo "2514"]
[TimeControl "180+1"]
[EndTime "8:08:20 PDT"]
[Termination "BilodeauA won by resignation"]

1. e4 {[%clk 0:03:00.9]} 1... c6 {[%clk 0:02:58.5]} 2. Nf3 {[%clk 0:02:58.1]}
2... d5 {[%clk 0:02:57.9]} 3. d3 {[%clk 0:02:58.6]} 3... Bg4 {[%clk 0:02:52.1]}
4. h3 {[%clk 0:02:56.7]} 4... Bxf3 {[%clk 0:02:52.3]} 5. Qxf3 {[%clk 0:02:56.8]}
5... Nf6 {[%clk 0:02:53]} 6. e5 {[%clk 0:02:51.7]} 6... Nfd7 {[%clk 0:02:52.7]}
7. d4 {[%clk 0:02:52.4]} 7... e6 {[%clk 0:02:53]} 8. c3 {[%clk 0:02:51.7]} 8...
c5 {[%clk 0:02:53.2]} 9. Qd1 {[%clk 0:02:36.4]} 9... Nc6 {[%clk 0:02:52]} 10.
Bb5 {[%clk 0:02:23.9]} 10... Qb6 {[%clk 0:02:34.6]} 11. Bxc6 {[%clk 0:02:24]}
11... bxc6 {[%clk 0:02:35.5]} 12. O-O {[%clk 0:02:23.9]} 12... Be7 {[%clk
0:02:33.2]} 13. f4 {[%clk 0:02:23.3]} 13... cxd4 {[%clk 0:02:27.6]} 14. cxd4
{[%clk 0:02:24.2]} 14... O-O {[%clk 0:02:11.8]} 15. Kh2 {[%clk 0:02:24]} 15...
f5 {[%clk 0:02:10.6]} 16. Nc3 {[%clk 0:02:19.4]} 16... c5 {[%clk 0:02:05.3]} 17.
Na4 {[%clk 0:02:16.5]} 17... Qb5 {[%clk 0:02:02.2]} 18. Be3 {[%clk 0:02:09.7]}
18... cxd4 {[%clk 0:01:46.6]} 19. Bxd4 {[%clk 0:02:09.9]} 19... Rfc8 {[%clk
0:01:46.7]} 20. b3 {[%clk 0:02:09.8]} 20... Nc5 {[%clk 0:01:45.7]} 21. Bxc5
{[%clk 0:01:59.4]} 21... Bxc5 {[%clk 0:01:45.4]} 22. Rc1 {[%clk 0:01:51.2]}
22... Ba3 {[%clk 0:01:41.1]} 23. Rc3 {[%clk 0:01:47.3]} 23... Rxc3 {[%clk
0:01:34.3]} 24. Nxc3 {[%clk 0:01:48.2]} 24... Qc5 {[%clk 0:01:30.8]} 25. Ne2
{[%clk 0:01:46.1]} 25... Rc8 {[%clk 0:01:25.2]} 26. Nd4 {[%clk 0:01:46.4]} 26...
Qb6 {[%clk 0:01:24.3]} 27. Qd3 {[%clk 0:01:41]} 27... a6 {[%clk 0:01:10.3]} 28.
Rd1 {[%clk 0:01:21.1]} 28... Bb2 {[%clk 0:01:07.9]} 29. Ne2 {[%clk 0:01:18.6]}
29... Qb5 {[%clk 0:01:01.1]} 30. Qxb5 {[%clk 0:01:17.2]} 30... axb5 {[%clk
0:01:01.5]} 31. Rd2 {[%clk 0:01:18]} 31... Ba1 {[%clk 0:00:47]} 32. Kg3 {[%clk
0:01:12.2]} 32... g5 {[%clk 0:00:45.4]} 33. Rd1 {[%clk 0:01:12.7]} 33... Bb2
{[%clk 0:00:44.3]} 34. Rd2 {[%clk 0:01:12.3]} 34... Ba1 {[%clk 0:00:44.4]} 35.
Kf3 {[%clk 0:01:11.6]} 35... gxf4 {[%clk 0:00:43]} 36. Nxf4 {[%clk 0:01:11.5]}
36... Kf7 {[%clk 0:00:43.5]} 37. Nd3 {[%clk 0:01:08.4]} 37... Bd4 {[%clk
0:00:40.6]} 38. g4 {[%clk 0:01:06.9]} 38... fxg4+ {[%clk 0:00:30.2]} 39. hxg4
{[%clk 0:01:07.8]} 39... Ra8 {[%clk 0:00:27.7]} 40. Rh2 {[%clk 0:01:07.4]} 40...
Kg7 {[%clk 0:00:24.1]} 41. Rc2 {[%clk 0:00:54.3]} 41... Ra7 {[%clk 0:00:17.4]}
42. g5 {[%clk 0:00:53.7]} 42... Kg6 {[%clk 0:00:16.7]} 43. Kg4 {[%clk
0:00:53.9]} 43... h5+ {[%clk 0:00:15.5]} 44. gxh6 {[%clk 0:00:52.6]} 44... Kxh6
{[%clk 0:00:15.7]} 45. Nf4 {[%clk 0:00:43]} 45... Bxe5 {[%clk 0:00:15.8]} 46.
Nxe6 {[%clk 0:00:42]} 46... Kg6 {[%clk 0:00:15.1]} 47. Re2 {[%clk 0:00:31.4]}
47... Kf6 {[%clk 0:00:13.9]} 48. Nc5 {[%clk 0:00:31]} 48... Rg7+ {[%clk
0:00:13.9]} 49. Kf3 {[%clk 0:00:31.2]} 49... Kf5 {[%clk 0:00:14.3]} 50. Ke3
{[%clk 0:00:25]} 50... Rg3+ {[%clk 0:00:07.3]} 51. Kd2 {[%clk 0:00:25.6]} 51...
Bf4+ {[%clk 0:00:07.5]} 52. Kc2 {[%clk 0:00:25.8]} 52... Be5 {[%clk 0:00:07.6]}
53. Nd3 {[%clk 0:00:26.1]} 53... Bd4 {[%clk 0:00:07.8]} 54. Rh2 {[%clk
0:00:26.4]} 54... Ke4 {[%clk 0:00:06]} 55. Re2+ {[%clk 0:00:24.5]} 55... Kf3
{[%clk 0:00:05.9]} 56. Rd2 {[%clk 0:00:20.4]} 56... Ke3 {[%clk 0:00:06.2]} 57.
Nb4 {[%clk 0:00:18.6]} 57... Ke4 {[%clk 0:00:06.8]} 58. Re2+ {[%clk 0:00:17.9]}
58... Kf3 {[%clk 0:00:05.4]} 59. Re8 {[%clk 0:00:18.2]} 59... Rg2+ {[%clk
0:00:05.6]} 60. Kd3 {[%clk 0:00:18.9]} 60... Bf2 {[%clk 0:00:05]} 61. Rf8+
{[%clk 0:00:19.4]} 61... Kg3 {[%clk 0:00:05.3]} 62. Nxd5 {[%clk 0:00:20.1]}
62... Bg1 {[%clk 0:00:06.1]} 63. Rg8+ {[%clk 0:00:20.5]} 63... Kh2 {[%clk
0:00:06.8]} 64. Rxg2+ {[%clk 0:00:21.3]} 64... Kxg2 {[%clk 0:00:07.7]} 65. Nc3
{[%clk 0:00:22.1]} 65... b4 {[%clk 0:00:07.2]} 66. Nd5 {[%clk 0:00:22.6]} 66...
Bc5 {[%clk 0:00:06.3]} 67. Kc4 {[%clk 0:00:23.4]} 67... Bd6 {[%clk 0:00:06.2]}
68. Nxb4 {[%clk 0:00:24.3]} 68... Kf3 {[%clk 0:00:06.6]} 69. Nd5 {[%clk
0:00:25.2]} 69... Ke4 {[%clk 0:00:07.1]} 70. a4 {[%clk 0:00:26.1]} 70... Bc7
{[%clk 0:00:06.8]} 71. Nxc7 {[%clk 0:00:26.3]} 1-0

[Event "Early-Titled-Tuesday-Blitz-May-14-2024"]
[Site "Chess.com"]
[Date "2024.05.14"]
[Round "1"]
[White "JoliyRoger"]
[Black "Alexchess1984"]
[Result "1-0"]
[WhiteElo "2409"]
[BlackElo "2693"]
[TimeControl "180+1"]
[EndTime "8:08:25 PDT"]
[Termination "JoliyRoger won by resignation"]

1. d4 {[%clk 0:02:45.8]} 1... e6 {[%clk 0:03:00.9]} 2. c4 {[%clk 0:02:39.8]}
2... f5 {[%clk 0:03:00.8]} 3. Nf3 {[%clk 0:02:38.4]} 3... Nf6 {[%clk 0:03:01.3]}
4. Nc3 {[%clk 0:02:39]} 4... Be7 {[%clk 0:03:01.1]} 5. Bg5 {[%clk 0:02:39.6]}
5... h6 {[%clk 0:03:00.7]} 6. Bxf6 {[%clk 0:02:38.2]} 6... Bxf6 {[%clk
0:03:00.7]} 7. e3 {[%clk 0:02:38.9]} 7... O-O {[%clk 0:03:00.6]} 8. Bd3 {[%clk
0:02:39.4]} 8... b6 {[%clk 0:02:59.4]} 9. e4 {[%clk 0:02:35.4]} 9... Bb7 {[%clk
0:02:56.1]} 10. exf5 {[%clk 0:02:26.3]} 10... exf5 {[%clk 0:02:55.9]} 11. Bxf5
{[%clk 0:02:25.3]} 11... Re8+ {[%clk 0:02:54.5]} 12. Kf1 {[%clk 0:02:24.7]}
12... Nc6 {[%clk 0:02:50]} 13. Qd3 {[%clk 0:02:13.1]} 13... Nb4 {[%clk 0:02:48]}
14. Qd2 {[%clk 0:02:12.2]} 14... Bxf3 {[%clk 0:02:42.5]} 15. gxf3 {[%clk
0:02:11.4]} 15... c5 {[%clk 0:02:40.5]} 16. dxc5 {[%clk 0:02:02.6]} 16... bxc5
{[%clk 0:02:39.3]} 17. Be4 {[%clk 0:01:58.5]} 17... Rb8 {[%clk 0:02:37.1]} 18.
Rg1 {[%clk 0:01:56]} 18... Kh8 {[%clk 0:02:37]} 19. Rd1 {[%clk 0:01:51.5]} 19...
Bd4 {[%clk 0:02:32.3]} 20. b3 {[%clk 0:01:50]} 20... Qh4 {[%clk 0:02:28.2]} 21.
Rg2 {[%clk 0:01:48.5]} 21... Rb6 {[%clk 0:02:24.7]} 22. Ne2 {[%clk 0:01:47.3]}
22... Rd6 {[%clk 0:02:10.1]} 23. Qf4 {[%clk 0:01:35.2]} 23... Qe7 {[%clk
0:02:01.5]} 24. Nxd4 {[%clk 0:01:15.4]} 24... cxd4 {[%clk 0:01:55.7]} 25. Qf5
{[%clk 0:01:16]} 25... g5 {[%clk 0:01:52.9]} 26. h4 {[%clk 0:01:11.5]} 26... Rf6
{[%clk 0:01:41.6]} 27. Qa5 {[%clk 0:00:53.8]} 27... Nc2 {[%clk 0:01:36.8]} 28.
Rg4 {[%clk 0:00:20.1]} 28... Rf4 {[%clk 0:01:12.3]} 29. Rxf4 {[%clk 0:00:17.9]}
29... gxf4 {[%clk 0:01:12.5]} 30. Qf5 {[%clk 0:00:17.5]} 30... Rf8 {[%clk
0:01:03.1]} 31. Qg6 {[%clk 0:00:16.1]} 31... Rf6 {[%clk 0:01:02.1]} 32. Qg4
{[%clk 0:00:16.4]} 32... Nb4 {[%clk 0:00:53.2]} 33. Rxd4 {[%clk 0:00:16.1]}
33... Qg7 {[%clk 0:00:49.7]} 34. Qxg7+ {[%clk 0:00:14.5]} 34... Kxg7 {[%clk
0:00:50.6]} 35. Rxd7+ {[%clk 0:00:15]} 35... Kf8 {[%clk 0:00:51.2]} 36. Rxa7
{[%clk 0:00:14.7]} 36... Rd6 {[%clk 0:00:48.4]} 37. a3 {[%clk 0:00:14.1]} 37...
Rd1+ {[%clk 0:00:48.4]} 38. Kg2 {[%clk 0:00:14.8]} 38... Na2 {[%clk 0:00:48.1]}
39. h5 {[%clk 0:00:13.1]} 39... Nc3 {[%clk 0:00:48.1]} 40. b4 {[%clk 0:00:12.9]}
40... Ne2 {[%clk 0:00:48.2]} 41. c5 {[%clk 0:00:11.7]} 41... Rg1+ {[%clk
0:00:48.7]} 42. Kh2 {[%clk 0:00:12.3]} 42... Rg5 {[%clk 0:00:49.6]} 43. Bg6
{[%clk 0:00:11.1]} 43... Nd4 {[%clk 0:00:49.1]} 44. Rf7+ {[%clk 0:00:11.5]}
44... Kg8 {[%clk 0:00:48.9]} 45. Rxf4 {[%clk 0:00:12.3]} 45... Re5 {[%clk
0:00:48.4]} 46. Be4 {[%clk 0:00:11.1]} 46... Ne2 {[%clk 0:00:48]} 47. Rg4+
{[%clk 0:00:11]} 47... Kf8 {[%clk 0:00:47.9]} 48. c6 {[%clk 0:00:11]} 48...
Rxh5+ {[%clk 0:00:48.1]} 49. Kg2 {[%clk 0:00:10.2]} 49... Ke7 {[%clk 0:00:48.3]}
50. Rg7+ {[%clk 0:00:10]} 50... Kd8 {[%clk 0:00:44]} 51. a4 {[%clk 0:00:07.4]}
51... Nf4+ {[%clk 0:00:41.8]} 52. Kg3 {[%clk 0:00:06.5]} 52... Ne6 {[%clk
0:00:42.7]} 53. Rd7+ {[%clk 0:00:05.6]} 53... Kc8 {[%clk 0:00:41.8]} 54. b5
{[%clk 0:00:05.8]} 54... Rg5+ {[%clk 0:00:41.3]} 55. Kh4 {[%clk 0:00:06]} 55...
Nf4 {[%clk 0:00:37.9]} 56. b6 {[%clk 0:00:01.2]} 56... Ng2+ {[%clk 0:00:38.8]}
57. Kh3 {[%clk 0:00:01]} 57... Nf4+ {[%clk 0:00:39.4]} 58. Kh2 {[%clk
0:00:01.7]} 58... Rh5+ {[%clk 0:00:39.9]} 59. Kg3 {[%clk 0:00:01.8]} 59... Rh1
{[%clk 0:00:40.8]} 60. Kxf4 {[%clk 0:00:01.9]} 60... Rh4+ {[%clk 0:00:40.3]} 61.
Ke3 {[%clk 0:00:01.7]} 61... Rh5 {[%clk 0:00:37.6]} 62. b7+ {[%clk 0:00:02.6]}
62... Kb8 {[%clk 0:00:38]} 63. Rd8+ {[%clk 0:00:03]} 63... Ka7 {[%clk
0:00:37.4]} 64. b8=Q+ {[%clk 0:00:03.9]} 64... Ka6 {[%clk 0:00:38]} 65. Rd5
{[%clk 0:00:03.9]} 65... Rxd5 {[%clk 0:00:34.2]} 66. Bxd5 {[%clk 0:00:03.7]} 1-0

[Event "Early-Titled-Tuesday-Blitz-May-14-2024"]
[Site "Chess.com"]
[Date "2024.05.14"]
[Round "1"]
[White "Logman74"]
[Black "gmcorrales"]
[Result "0-1"]
[WhiteElo "2529"]
[BlackElo "2949"]
[TimeControl "180+1"]
[EndTime "8:08:32 PDT"]
[Termination "gmcorrales won on time"]

1. e4 {[%clk 0:03:00.9]} 1... c5 {[%clk 0:02:59]} 2. Nf3 {[%clk 0:02:59.1]} 2...
d6 {[%clk 0:02:58.8]} 3. d4 {[%clk 0:02:58.3]} 3... cxd4 {[%clk 0:02:59.7]} 4.
Nxd4 {[%clk 0:02:58.5]} 4... Nf6 {[%clk 0:02:59.9]} 5. Nc3 {[%clk 0:02:59]} 5...
a6 {[%clk 0:03:00.4]} 6. f4 {[%clk 0:02:58.6]} 6... Qc7 {[%clk 0:02:49.7]} 7.
Bd3 {[%clk 0:02:55.9]} 7... g6 {[%clk 0:02:46.7]} 8. O-O {[%clk 0:02:54.7]} 8...
Bg7 {[%clk 0:02:46.9]} 9. Nf3 {[%clk 0:02:55.2]} 9... O-O {[%clk 0:02:46.4]} 10.
Kh1 {[%clk 0:02:55.8]} 10... Nc6 {[%clk 0:02:43.2]} 11. a3 {[%clk 0:02:53.8]}
11... e6 {[%clk 0:02:42.1]} 12. Qe1 {[%clk 0:02:52]} 12... d5 {[%clk 0:02:32.3]}
13. e5 {[%clk 0:02:28.6]} 13... Nd7 {[%clk 0:02:30.6]} 14. Qh4 {[%clk
0:02:27.1]} 14... Qd8 {[%clk 0:02:29.3]} 15. Qh3 {[%clk 0:02:24.7]} 15... Nc5
{[%clk 0:02:28.6]} 16. Ng5 {[%clk 0:02:10]} 16... h6 {[%clk 0:02:23.8]} 17. Nf3
{[%clk 0:02:10.6]} 17... Nxd3 {[%clk 0:01:55.6]} 18. cxd3 {[%clk 0:02:08.4]}
18... f5 {[%clk 0:01:54.2]} 19. exf6 {[%clk 0:01:43]} 19... Qxf6 {[%clk
0:01:51.9]} 20. Qg3 {[%clk 0:01:43.5]} 20... Bd7 {[%clk 0:01:43]} 21. Bd2 {[%clk
0:01:42.9]} 21... Rae8 {[%clk 0:01:41.8]} 22. Rae1 {[%clk 0:01:43.4]} 22... Qf5
{[%clk 0:01:36]} 23. Nh4 {[%clk 0:01:40.2]} 23... Qh5 {[%clk 0:01:30.9]} 24.
Nxg6 {[%clk 0:01:36.9]} 24... Rf6 {[%clk 0:01:26.2]} 25. Ne5 {[%clk 0:01:33.4]}
25... Nxe5 {[%clk 0:01:25.2]} 26. fxe5 {[%clk 0:01:20.7]} 26... Rxf1+ {[%clk
0:01:26.1]} 27. Rxf1 {[%clk 0:01:21.1]} 27... Qxe5 {[%clk 0:01:23.3]} 28. Qxe5
{[%clk 0:00:57]} 28... Bxe5 {[%clk 0:01:24.2]} 29. Bxh6 {[%clk 0:00:57.2]} 29...
b5 {[%clk 0:01:24.5]} 30. h4 {[%clk 0:00:49.3]} 30... a5 {[%clk 0:01:24.2]} 31.
Re1 {[%clk 0:00:47.6]} 31... Bd4 {[%clk 0:01:20.9]} 32. Be3 {[%clk 0:00:44.2]}
32... Bxe3 {[%clk 0:01:20.3]} 33. Rxe3 {[%clk 0:00:43.8]} 33... b4 {[%clk
0:01:16.5]} 34. axb4 {[%clk 0:00:42.9]} 34... axb4 {[%clk 0:01:17.4]} 35. Ne2
{[%clk 0:00:37.4]} 35... e5 {[%clk 0:01:16.6]} 36. d4 {[%clk 0:00:37.2]} 36...
e4 {[%clk 0:01:13.4]} 37. Nf4 {[%clk 0:00:37.7]} 37... Bc6 {[%clk 0:01:10.8]}
38. Kg1 {[%clk 0:00:35.8]} 38... Ra8 {[%clk 0:01:09.8]} 39. Kf2 {[%clk
0:00:33.8]} 39... Kf7 {[%clk 0:00:59.5]} 40. g4 {[%clk 0:00:33.2]} 40... Ra1
{[%clk 0:00:58.8]} 41. Re1 {[%clk 0:00:30.2]} 41... Ra2 {[%clk 0:00:58.2]} 42.
Re2 {[%clk 0:00:30.4]} 42... Bb5 {[%clk 0:00:58.5]} 43. Rd2 {[%clk 0:00:30.3]}
43... Bc4 {[%clk 0:00:56.5]} 44. g5 {[%clk 0:00:28.2]} 44... Ra1 {[%clk
0:00:56.8]} 45. h5 {[%clk 0:00:27.3]} 45... Rf1+ {[%clk 0:00:56.1]} 46. Kg3
{[%clk 0:00:22.8]} 46... e3 {[%clk 0:00:56.5]} 47. Rh2 {[%clk 0:00:20.6]} 47...
Rg1+ {[%clk 0:00:36.6]} 48. Rg2 {[%clk 0:00:20.1]} 48... Rf1 {[%clk 0:00:32.6]}
49. g6+ {[%clk 0:00:20]} 49... Kg7 {[%clk 0:00:30.7]} 50. Rh2 {[%clk 0:00:20.3]}
50... Kh6 {[%clk 0:00:30.6]} 51. Rg2 {[%clk 0:00:15.7]} 51... Kg7 {[%clk
0:00:11.3]} 52. b3 {[%clk 0:00:15.2]} 52... Bb5 {[%clk 0:00:08.4]} 53. Rh2
{[%clk 0:00:09.5]} 53... Kh6 {[%clk 0:00:07.6]} 54. Rc2 {[%clk 0:00:06.5]} 54...
Bd7 {[%clk 0:00:02.7]} 55. Nxd5 {[%clk 0:00:04.9]} 55... Bf5 {[%clk 0:00:01.4]}
56. Rh2 {[%clk 0:00:02.8]} 56... Rg1+ {[%clk 0:00:00.7]} 57. Rg2 {[%clk
0:00:03.4]} 57... Rxg2+ {[%clk 0:00:00.6]} 58. Kxg2 {[%clk 0:00:04]} 58... Be4+
{[%clk 0:00:01.5]} 59. Kf1 {[%clk 0:00:04.5]} 59... Bxd5 {[%clk 0:00:02.4]} 60.
Ke2 {[%clk 0:00:04.9]} 60... Bxb3 {[%clk 0:00:03.1]} 61. Kxe3 {[%clk 0:00:05.6]}
61... Bd5 {[%clk 0:00:03.8]} 62. Kd2 {[%clk 0:00:06.1]} 62... b3 {[%clk
0:00:04.7]} 63. Kc3 {[%clk 0:00:06.6]} 63... Kxh5 {[%clk 0:00:05.3]} 64. g7
{[%clk 0:00:06.5]} 64... Kg6 {[%clk 0:00:06.2]} 0-1